[Event "*** Titled Tuesday 3|2 Blitz"]
[Site "Chess.com"]
[Date "2015.04.07"]
[Round "4"]
[White "Daniel_Fridman"]
[Black "jbj"]
[Result "1/2-1/2"]
[WhiteElo "2622"]
[BlackElo "2296"]
[TimeControl "180+2"]
[EndTime "11:50:19 PDT"]
[Termination "Game drawn by stalemate"]

1. d4 {[%clk 0:03:01.9]} 1... Nf6 {[%clk 0:03:00.7]} 2. Nf3 {[%clk 0:03:03.1]}
2... e6 {[%clk 0:03:01.8]} 3. c4 {[%clk 0:03:03.9]} 3... b6 {[%clk 0:03:02.1]}
4. g3 {[%clk 0:03:04.6]} 4... Ba6 {[%clk 0:03:03.3]} 5. Qa4 {[%clk 0:03:05.2]}
5... c5 {[%clk 0:03:03.1]} 6. Bg2 {[%clk 0:03:05.8]} 6... Bb7 {[%clk 0:03:04.3]}
7. dxc5 {[%clk 0:03:07.1]} 7... Bxc5 {[%clk 0:03:04.1]} 8. O-O {[%clk
0:03:08.6]} 8... O-O {[%clk 0:03:05.2]} 9. Nc3 {[%clk 0:03:09.8]} 9... d5 {[%clk
0:03:03.6]} 10. Bg5 {[%clk 0:03:00.2]} 10... dxc4 {[%clk 0:03:03.9]} 11. Qxc4
{[%clk 0:02:59.9]} 11... h6 {[%clk 0:03:04.3]} 12. Bxf6 {[%clk 0:02:48.4]} 12...
Qxf6 {[%clk 0:03:06.2]} 13. Ne4 {[%clk 0:02:42.6]} 13... Bxe4 {[%clk 0:03:05.1]}
14. Qxe4 {[%clk 0:02:44.5]} 14... Nd7 {[%clk 0:03:05.3]} 15. Rad1 {[%clk
0:02:41.7]} 15... Rad8 {[%clk 0:03:02.1]} 16. Qb7 {[%clk 0:02:39.7]} 16... Ne5
{[%clk 0:02:58.9]} 17. Nd2 {[%clk 0:02:22.5]} 17... Ng4 {[%clk 0:02:45.3]} 18.
Bf3 {[%clk 0:01:40.9]} 18... Nxf2 {[%clk 0:02:19.2]} 19. Rxf2 {[%clk 0:01:23.8]}
19... Qd4 {[%clk 0:02:19.8]} 20. e3 {[%clk 0:01:09.6]} 20... Qxe3 {[%clk
0:02:18.4]} 21. Ne4 {[%clk 0:01:11.3]} 21... Rxd1+ {[%clk 0:02:12.6]} 22. Bxd1
{[%clk 0:01:13.2]} 22... Qe1+ {[%clk 0:02:12.6]} 23. Kg2 {[%clk 0:01:14.4]}
23... Qxd1 {[%clk 0:02:06.4]} 24. Nxc5 {[%clk 0:01:15.5]} 24... bxc5 {[%clk
0:02:07]} 25. Qxa7 {[%clk 0:01:16.7]} 25... Qd5+ {[%clk 0:02:05.9]} 26. Kg1
{[%clk 0:01:16.2]} 26... e5 {[%clk 0:02:01]} 27. Qe7 {[%clk 0:01:05.3]} 27...
Qxa2 {[%clk 0:01:42]} 28. Qxe5 {[%clk 0:01:05.3]} 28... c4 {[%clk 0:01:31.7]}
29. Qd5 {[%clk 0:01:01.6]} 29... Qa1+ {[%clk 0:01:25.9]} 30. Kg2 {[%clk
0:01:02.4]} 30... Qa8 {[%clk 0:01:24.7]} 31. Qxa8 {[%clk 0:01:00.2]} 31... Rxa8
{[%clk 0:01:26.6]} 32. Rc2 {[%clk 0:01:01.3]} 32... Ra2 {[%clk 0:01:23.6]} 33.
Rf2 {[%clk 0:00:44.6]} 33... g6 {[%clk 0:01:17.1]} 34. Kf3 {[%clk 0:00:45.3]}
34... Kg7 {[%clk 0:01:15.8]} 35. Ke3 {[%clk 0:00:46.5]} 35... Ra1 {[%clk
0:01:02.3]} 36. Rc2 {[%clk 0:00:43.8]} 36... Ra4 {[%clk 0:00:49.5]} 37. Kd4
{[%clk 0:00:44]} 37... Rb4 {[%clk 0:00:50.5]} 38. Kc5 {[%clk 0:00:43.7]} 38...
Ra4 {[%clk 0:00:32.3]} 39. Kb5 {[%clk 0:00:44.1]} 39... Ra2 {[%clk 0:00:30.2]}
40. Kxc4 {[%clk 0:00:45]} 40... f5 {[%clk 0:00:30.8]} 41. Kc3 {[%clk 0:00:43.8]}
41... g5 {[%clk 0:00:30.4]} 42. b4 {[%clk 0:00:44.3]} 42... Ra7 {[%clk
0:00:26.7]} 43. b5 {[%clk 0:00:42.7]} 43... Kf6 {[%clk 0:00:25.7]} 44. Kb4
{[%clk 0:00:43.1]} 44... f4 {[%clk 0:00:22.1]} 45. gxf4 {[%clk 0:00:42.3]} 45...
gxf4 {[%clk 0:00:23]} 46. Rc5 {[%clk 0:00:43.8]} 46... Kg6 {[%clk 0:00:19.4]}
47. b6 {[%clk 0:00:37.3]} 47... Rf7 {[%clk 0:00:16.5]} 48. Rc7 {[%clk
0:00:32.1]} 48... f3 {[%clk 0:00:11.9]} 49. b7 {[%clk 0:00:25.7]} 49... Rf4+
{[%clk 0:00:06]} 50. Kb3 {[%clk 0:00:22]} 50... f2 {[%clk 0:00:04.7]} 51. b8=Q
{[%clk 0:00:22.9]} 51... f1=Q {[%clk 0:00:05.7]} 52. Qe8+ {[%clk 0:00:17.7]}
52... Kg5 {[%clk 0:00:06.3]} 53. Rc5+ {[%clk 0:00:17.9]} 53... Rf5 {[%clk
0:00:06.9]} 54. Qe3+ {[%clk 0:00:16.8]} 54... Kh5 {[%clk 0:00:07.7]} 55. Rxf5+
{[%clk 0:00:10.1]} 55... Qxf5 {[%clk 0:00:08.3]} 56. Kc3 {[%clk 0:00:11.2]}
56... Qf6+ {[%clk 0:00:07.9]} 57. Kd3 {[%clk 0:00:09.3]} 57... Qd6+ {[%clk
0:00:08.9]} 58. Ke4 {[%clk 0:00:10.5]} 58... Qxh2 {[%clk 0:00:09.1]} 59. Qf3+
{[%clk 0:00:11.6]} 59... Kg6 {[%clk 0:00:09.1]} 60. Qg4+ {[%clk 0:00:12.4]}
60... Kf6 {[%clk 0:00:09.4]} 61. Qf5+ {[%clk 0:00:13]} 61... Kg7 {[%clk
0:00:10.7]} 62. Qe5+ {[%clk 0:00:14.1]} 62... Qxe5+ {[%clk 0:00:11]} 63. Kxe5
{[%clk 0:00:15.8]} 63... Kg6 {[%clk 0:00:12.5]} 64. Kf4 {[%clk 0:00:17.5]} 64...
Kh5 {[%clk 0:00:14]} 65. Kg3 {[%clk 0:00:18.7]} 65... Kg5 {[%clk 0:00:15.5]} 66.
Kh2 {[%clk 0:00:20.4]} 66... h5 {[%clk 0:00:17.4]} 67. Kh1 {[%clk 0:00:22.2]}
67... h4 {[%clk 0:00:19.3]} 68. Kg1 {[%clk 0:00:24.1]} 68... Kg4 {[%clk
0:00:21.2]} 69. Kh1 {[%clk 0:00:26]} 69... h3 {[%clk 0:00:22.9]} 70. Kg1 {[%clk
0:00:27.9]} 70... Kg3 {[%clk 0:00:24.3]} 71. Kh1 {[%clk 0:00:29.8]} 71... h2
{[%clk 0:00:25.8]} 1/2-1/2

[Event "*** Titled Tuesday 3|2 Blitz"]
[Site "Chess.com"]
[Date "2015.04.07"]
[Round "4"]
[White "jcibarra"]
[Black "tac49"]
[Result "1/2-1/2"]
[WhiteElo "2525"]
[BlackElo "2368"]
[TimeControl "180+2"]
[EndTime "11:52:05 PDT"]
[Termination "Game drawn - insufficient material"]

1. e4 {[%clk 0:03:01.9]} 1... e5 {[%clk 0:02:59.9]} 2. Nf3 {[%clk 0:03:03.1]}
2... Nc6 {[%clk 0:03:00.7]} 3. Nc3 {[%clk 0:03:04.7]} 3... Nf6 {[%clk
0:03:00.7]} 4. d4 {[%clk 0:03:05.7]} 4... exd4 {[%clk 0:03:01.2]} 5. Nxd4 {[%clk
0:03:07.6]} 5... Bb4 {[%clk 0:03:01.9]} 6. Nxc6 {[%clk 0:03:08.8]} 6... bxc6
{[%clk 0:03:01.9]} 7. Bd3 {[%clk 0:03:10.4]} 7... d5 {[%clk 0:03:02.3]} 8. exd5
{[%clk 0:03:11.7]} 8... cxd5 {[%clk 0:03:01.7]} 9. Qe2+ {[%clk 0:03:12.8]} 9...
Qe7 {[%clk 0:02:59.1]} 10. Qxe7+ {[%clk 0:03:13.4]} 10... Bxe7 {[%clk
0:02:59.6]} 11. Nb5 {[%clk 0:03:13.6]} 11... Bb4+ {[%clk 0:02:28.1]} 12. c3
{[%clk 0:03:11.8]} 12... Ba5 {[%clk 0:02:29]} 13. Bf4 {[%clk 0:03:12.9]} 13...
c6 {[%clk 0:02:11.7]} 14. Nd6+ {[%clk 0:03:13.2]} 14... Ke7 {[%clk 0:02:11.3]}
15. O-O-O {[%clk 0:03:01.4]} 15... Be6 {[%clk 0:02:07.1]} 16. Rhe1 {[%clk
0:03:01.5]} 16... Kd7 {[%clk 0:02:02.6]} 17. Nf5 {[%clk 0:02:58.9]} 17... Rhg8
{[%clk 0:01:48.9]} 18. Nd4 {[%clk 0:02:50.7]} 18... Bb6 {[%clk 0:01:42]} 19. h3
{[%clk 0:02:43.3]} 19... Rge8 {[%clk 0:01:24.2]} 20. Nf5 {[%clk 0:02:42.4]}
20... Rg8 {[%clk 0:01:14.3]} 21. Re2 {[%clk 0:02:41.1]} 21... Bc7 {[%clk
0:01:11.2]} 22. Bg5 {[%clk 0:02:38.2]} 22... h6 {[%clk 0:00:46.9]} 23. Bd2
{[%clk 0:02:37.7]} 23... Rae8 {[%clk 0:00:40.7]} 24. Rde1 {[%clk 0:02:35.6]}
24... Bxf5 {[%clk 0:00:33.2]} 25. Bxf5+ {[%clk 0:02:36.7]} 25... Kd8 {[%clk
0:00:34.7]} 26. g4 {[%clk 0:02:18.2]} 26... Rxe2 {[%clk 0:00:32.5]} 27. Rxe2
{[%clk 0:02:20.1]} 27... Re8 {[%clk 0:00:33.5]} 28. Kd1 {[%clk 0:02:21.6]} 28...
Bb6 {[%clk 0:00:28.3]} 29. f3 {[%clk 0:02:20.2]} 29... Rxe2 {[%clk 0:00:25.4]}
30. Kxe2 {[%clk 0:02:22.1]} 30... Ke7 {[%clk 0:00:26.2]} 31. Bf4 {[%clk
0:02:21.1]} 31... Ne8 {[%clk 0:00:24.8]} 32. Bd3 {[%clk 0:02:18.2]} 32... Bc7
{[%clk 0:00:25]} 33. Be3 {[%clk 0:02:16.8]} 33... Bb6 {[%clk 0:00:25.8]} 34. Bd2
{[%clk 0:02:18]} 34... Nd6 {[%clk 0:00:26.5]} 35. b3 {[%clk 0:02:18.8]} 35...
Bc5 {[%clk 0:00:20.4]} 36. Be1 {[%clk 0:02:16.7]} 36... Bb6 {[%clk 0:00:20.9]}
37. Bh4+ {[%clk 0:02:17.5]} 37... g5 {[%clk 0:00:20]} 38. Bg3 {[%clk 0:02:18.7]}
38... f6 {[%clk 0:00:20.5]} 39. Ba6 {[%clk 0:02:14.5]} 39... Bc7 {[%clk
0:00:18.8]} 40. Bf2 {[%clk 0:02:14]} 40... Bb6 {[%clk 0:00:19.1]} 41. Bg3 {[%clk
0:02:13.9]} 41... Bc7 {[%clk 0:00:19.3]} 42. a4 {[%clk 0:02:14.2]} 42... Ba5
{[%clk 0:00:15]} 43. b4 {[%clk 0:02:14.5]} 43... Bc7 {[%clk 0:00:15.3]} 44. a5
{[%clk 0:01:59.4]} 44... Nb5 {[%clk 0:00:12.9]} 45. Be1 {[%clk 0:01:54]} 45...
Be5 {[%clk 0:00:09.6]} 46. Kd3 {[%clk 0:01:55.1]} 46... Nc7 {[%clk 0:00:08.5]}
47. Bb7 {[%clk 0:01:56.4]} 47... Kd7 {[%clk 0:00:09.1]} 48. Bf2 {[%clk
0:01:51.6]} 48... Nb5 {[%clk 0:00:09.8]} 49. Ba6 {[%clk 0:01:46]} 49... Nc7
{[%clk 0:00:03.8]} 50. Bb7 {[%clk 0:01:44.3]} 50... Nb5 {[%clk 0:00:05.2]} 51.
Be1 {[%clk 0:01:38.8]} 51... Nd6 {[%clk 0:00:04.9]} 52. Ba6 {[%clk 0:01:36.7]}
52... Nb5 {[%clk 0:00:05.6]} 53. Bd2 {[%clk 0:01:34.2]} 53... Nd6 {[%clk
0:00:05.4]} 54. Be3 {[%clk 0:01:32.8]} 54... Nb5 {[%clk 0:00:02.4]} 55. Bxb5
{[%clk 0:01:33.6]} 55... cxb5 {[%clk 0:00:03.8]} 56. Bxa7 {[%clk 0:01:35.5]}
56... Kc6 {[%clk 0:00:05]} 57. a6 {[%clk 0:01:33]} 57... Kc7 {[%clk 0:00:04.9]}
58. Bc5 {[%clk 0:01:32]} 58... Kc6 {[%clk 0:00:05.8]} 59. Bf8 {[%clk 0:01:29.6]}
59... Kb6 {[%clk 0:00:06.7]} 60. Bxh6 {[%clk 0:01:30.5]} 60... Kxa6 {[%clk
0:00:07.8]} 61. Bf8 {[%clk 0:01:26.1]} 61... Kb6 {[%clk 0:00:08.8]} 62. Bc5+
{[%clk 0:01:27.1]} 62... Kc6 {[%clk 0:00:10]} 63. Bf2 {[%clk 0:01:28.2]} 63...
Kd6 {[%clk 0:00:10.9]} 64. h4 {[%clk 0:01:29.7]} 64... Ke6 {[%clk 0:00:11.9]}
65. hxg5 {[%clk 0:01:22.1]} 65... fxg5 {[%clk 0:00:13.8]} 66. Be3 {[%clk
0:01:23.4]} 66... Bf6 {[%clk 0:00:12.2]} 67. f4 {[%clk 0:01:21.9]} 67... gxf4
{[%clk 0:00:12.2]} 68. Bxf4 {[%clk 0:01:23.8]} 68... Be7 {[%clk 0:00:12.4]} 69.
Be3 {[%clk 0:01:22.9]} 69... Bf6 {[%clk 0:00:12.2]} 70. Bd4 {[%clk 0:01:23.5]}
70... Bg5 {[%clk 0:00:13.3]} 71. Be3 {[%clk 0:01:24.8]} 71... Bf6 {[%clk
0:00:14.1]} 72. Bd2 {[%clk 0:01:22.5]} 72... Bg7 {[%clk 0:00:12.3]} 73. Ke2
{[%clk 0:01:22]} 73... d4 {[%clk 0:00:11.4]} 74. Kd3 {[%clk 0:01:16.3]} 74...
dxc3 {[%clk 0:00:11.9]} 75. Bxc3 {[%clk 0:01:18.2]} 75... Bf8 {[%clk 0:00:13]}
76. Ke4 {[%clk 0:01:19.7]} 76... Be7 {[%clk 0:00:13.1]} 77. Bd2 {[%clk
0:01:20.5]} 77... Bd6 {[%clk 0:00:13.4]} 78. g5 {[%clk 0:01:18.6]} 78... Bc7
{[%clk 0:00:09.8]} 79. Bc3 {[%clk 0:01:17.5]} 79... Bd6 {[%clk 0:00:09.5]} 80.
g6 {[%clk 0:01:18.1]} 80... Bxb4 {[%clk 0:00:09.3]} 81. Bg7 {[%clk 0:00:46.8]}
81... Be7 {[%clk 0:00:08.8]} 82. Kf4 {[%clk 0:00:47.2]} 82... b4 {[%clk
0:00:09.4]} 83. Ke4 {[%clk 0:00:42.2]} 83... b3 {[%clk 0:00:09.1]} 84. Kd3
{[%clk 0:00:43.3]} 84... Kf5 {[%clk 0:00:09.7]} 85. Bb2 {[%clk 0:00:43.8]} 85...
Kxg6 {[%clk 0:00:10.3]} 86. Kc4 {[%clk 0:00:45.7]} 86... Ba3 {[%clk 0:00:09.9]}
87. Kxb3 {[%clk 0:00:47.6]} 1/2-1/2

[Event "*** Titled Tuesday 3|2 Blitz"]
[Site "Chess.com"]
[Date "2015.04.07"]
[Round "4"]
[White "rhungaski"]
[Black "kesarev"]
[Result "1/2-1/2"]
[WhiteElo "2437"]
[BlackElo "2204"]
[TimeControl "180+2"]
[EndTime "11:54:18 PDT"]
[Termination "Game drawn by repetition"]

1. d4 {[%clk 0:03:01.9]} 1... g6 {[%clk 0:03:00.8]} 2. c4 {[%clk 0:02:57.8]}
2... Bg7 {[%clk 0:03:02.2]} 3. Nf3 {[%clk 0:02:59.3]} 3... Nf6 {[%clk
0:03:02.2]} 4. Nc3 {[%clk 0:02:57.8]} 4... d6 {[%clk 0:03:03.3]} 5. e4 {[%clk
0:02:58.9]} 5... O-O {[%clk 0:03:05]} 6. Be2 {[%clk 0:03:00.4]} 6... e5 {[%clk
0:03:05.7]} 7. dxe5 {[%clk 0:03:02.3]} 7... dxe5 {[%clk 0:03:06.3]} 8. Qxd8
{[%clk 0:03:04.2]} 8... Rxd8 {[%clk 0:03:06.9]} 9. Bg5 {[%clk 0:03:06.1]} 9...
Na6 {[%clk 0:03:06.1]} 10. Nd5 {[%clk 0:03:05.5]} 10... Rd6 {[%clk 0:03:00.9]}
11. Nxf6+ {[%clk 0:03:06.2]} 11... Bxf6 {[%clk 0:03:01.2]} 12. Bxf6 {[%clk
0:03:08.1]} 12... Rxf6 {[%clk 0:03:02.8]} 13. Nxe5 {[%clk 0:03:10]} 13... Re6
{[%clk 0:03:00.3]} 14. f4 {[%clk 0:03:08]} 14... Nc5 {[%clk 0:02:51]} 15. O-O-O
{[%clk 0:03:04.7]} 15... f6 {[%clk 0:02:35.9]} 16. Rd8+ {[%clk 0:02:48.2]} 16...
Kg7 {[%clk 0:02:36]} 17. Nd3 {[%clk 0:02:37.3]} 17... Nxe4 {[%clk 0:02:24.1]}
18. Bf3 {[%clk 0:02:30.2]} 18... Nd6 {[%clk 0:02:03.2]} 19. Bd5 {[%clk
0:02:14.7]} 19... Re7 {[%clk 0:02:00.6]} 20. c5 {[%clk 0:02:07.5]} 20... Nf7
{[%clk 0:01:34.4]} 21. Bxf7 {[%clk 0:02:08.3]} 21... Kxf7 {[%clk 0:01:34.5]} 22.
Re1 {[%clk 0:02:06.9]} 22... Rxe1+ {[%clk 0:01:17.7]} 23. Nxe1 {[%clk
0:02:08.8]} 23... c6 {[%clk 0:01:18]} 24. Nf3 {[%clk 0:01:36]} 24... h5 {[%clk
0:01:07.8]} 25. Kd2 {[%clk 0:01:29.8]} 25... Ke7 {[%clk 0:01:03.1]} 26. Rg8
{[%clk 0:01:28.3]} 26... Kf7 {[%clk 0:01:03.3]} 27. Rh8 {[%clk 0:01:29.3]} 27...
b6 {[%clk 0:00:51.1]} 28. b4 {[%clk 0:01:29]} 28... a5 {[%clk 0:00:36.9]} 29.
cxb6 {[%clk 0:01:24.6]} 29... axb4 {[%clk 0:00:35.7]} 30. Kc1 {[%clk 0:01:16]}
30... Ke6 {[%clk 0:00:28.5]} 31. Kb2 {[%clk 0:01:06.6]} 31... c5 {[%clk
0:00:24.7]} 32. Nd2 {[%clk 0:00:47.8]} 32... Bb7 {[%clk 0:00:21.1]} 33. Rh7
{[%clk 0:00:19.6]} 33... Bd5 {[%clk 0:00:19.5]} 34. Nb3 {[%clk 0:00:18.1]} 34...
Kd6 {[%clk 0:00:17.9]} 35. Rc7 {[%clk 0:00:17.9]} 35... c4 {[%clk 0:00:15.9]}
36. Nd4 {[%clk 0:00:17.2]} 36... c3+ {[%clk 0:00:16]} 37. Kc1 {[%clk 0:00:17.9]}
37... Rxa2 {[%clk 0:00:07.9]} 38. Nb5+ {[%clk 0:00:19.4]} 38... Ke6 {[%clk
0:00:07.5]} 39. b7 {[%clk 0:00:16.2]} 39... Be4 {[%clk 0:00:04]} 40. Kd1 {[%clk
0:00:08.7]} 40... Rd2+ {[%clk 0:00:02.1]} 41. Ke1 {[%clk 0:00:08.9]} 41... Rd8
{[%clk 0:00:03.1]} 42. Nxc3 {[%clk 0:00:09.3]} 42... Bxb7 {[%clk 0:00:03]} 43.
Ne2 {[%clk 0:00:06.6]} 43... Bxg2 {[%clk 0:00:02.6]} 44. Rc4 {[%clk 0:00:07.3]}
44... b3 {[%clk 0:00:02.8]} 45. Rb4 {[%clk 0:00:08.5]} 45... Bd5 {[%clk
0:00:03.5]} 46. Nd4+ {[%clk 0:00:09.6]} 46... Kd6 {[%clk 0:00:04.4]} 47. Nxb3
{[%clk 0:00:10.6]} 47... Re8+ {[%clk 0:00:04.1]} 48. Kf2 {[%clk 0:00:11.1]}
48... Re4 {[%clk 0:00:05]} 49. Rxe4 {[%clk 0:00:10.6]} 49... Bxe4 {[%clk
0:00:05.9]} 50. Ke3 {[%clk 0:00:12.5]} 50... Bd5 {[%clk 0:00:06.5]} 51. Nd4
{[%clk 0:00:14.1]} 51... Be6 {[%clk 0:00:06.7]} 52. h4 {[%clk 0:00:14]} 52...
Bd7 {[%clk 0:00:07.7]} 53. Nf3 {[%clk 0:00:14.8]} 53... Kd5 {[%clk 0:00:08.4]}
54. Nd2 {[%clk 0:00:15.4]} 54... Bf5 {[%clk 0:00:08.4]} 55. Nb3 {[%clk
0:00:15.8]} 55... Bc2 {[%clk 0:00:08.6]} 56. Nd4 {[%clk 0:00:16.4]} 56... Bd1
{[%clk 0:00:09.5]} 57. Nb5 {[%clk 0:00:16.5]} 57... Ke6 {[%clk 0:00:09.3]} 58.
Nc3 {[%clk 0:00:15.3]} 58... Bc2 {[%clk 0:00:09]} 59. Nb5 {[%clk 0:00:13.9]}
59... Kf5 {[%clk 0:00:09.3]} 60. Kf3 {[%clk 0:00:10.3]} 60... Bd1+ {[%clk
0:00:08]} 61. Kg3 {[%clk 0:00:11.1]} 61... Ke4 {[%clk 0:00:08.4]} 62. Nd6+
{[%clk 0:00:11.8]} 62... Kd5 {[%clk 0:00:09.5]} 63. Ne8 {[%clk 0:00:12.7]} 63...
Ke6 {[%clk 0:00:10.5]} 64. Nc7+ {[%clk 0:00:13.8]} 64... Kd6 {[%clk 0:00:11.3]}
65. Nb5+ {[%clk 0:00:14.7]} 65... Ke6 {[%clk 0:00:12.3]} 66. Nc3 {[%clk
0:00:14.5]} 66... Bb3 {[%clk 0:00:12.4]} 67. Ne2 {[%clk 0:00:15.1]} 67... Bc4
{[%clk 0:00:11.7]} 68. Nc3 {[%clk 0:00:13.2]} 68... Ba6 {[%clk 0:00:12.2]} 69.
Nd1 {[%clk 0:00:12.4]} 69... Bb7 {[%clk 0:00:12.8]} 70. Ne3 {[%clk 0:00:13.2]}
70... Ba8 {[%clk 0:00:13.4]} 71. f5+ {[%clk 0:00:13.9]} 71... gxf5 {[%clk
0:00:13.8]} 72. Kf4 {[%clk 0:00:15.3]} 72... Be4 {[%clk 0:00:14.9]} 73. Nf1
{[%clk 0:00:16.4]} 73... Bb1 {[%clk 0:00:13.1]} 74. Ng3 {[%clk 0:00:17.8]} 74...
Bc2 {[%clk 0:00:10.3]} 75. Nxh5 {[%clk 0:00:18.8]} 75... Kf7 {[%clk 0:00:10.7]}
76. Kg3 {[%clk 0:00:14.4]} 76... f4+ {[%clk 0:00:10.5]} 77. Nxf4 {[%clk
0:00:14.5]} 77... Kg7 {[%clk 0:00:10.7]} 78. Kf3 {[%clk 0:00:15]} 78... Kh6
{[%clk 0:00:11.1]} 79. Ke3 {[%clk 0:00:16.9]} 79... Kg7 {[%clk 0:00:10.9]} 80.
Kd4 {[%clk 0:00:18.4]} 80... Bf5 {[%clk 0:00:11.3]} 81. Kd5 {[%clk 0:00:18.9]}
81... Kf7 {[%clk 0:00:11.6]} 82. Kd6 {[%clk 0:00:20.1]} 82... Bg4 {[%clk
0:00:11.9]} 83. Kd5 {[%clk 0:00:21.1]} 83... Bf5 {[%clk 0:00:12.7]} 84. Kd4
{[%clk 0:00:23]} 84... Bb1 {[%clk 0:00:12.4]} 85. Ke3 {[%clk 0:00:24.1]} 85...
Bf5 {[%clk 0:00:13.1]} 86. Nd5 {[%clk 0:00:23.9]} 86... Bb1 {[%clk 0:00:12.6]}
87. Kf4 {[%clk 0:00:24.3]} 87... Kg6 {[%clk 0:00:13.2]} 88. Kg4 {[%clk
0:00:24.1]} 88... Bf5+ {[%clk 0:00:13.1]} 89. Kg3 {[%clk 0:00:24.4]} 89... Bc2
{[%clk 0:00:12.6]} 90. Kf3 {[%clk 0:00:21.8]} 90... Kh5 {[%clk 0:00:11.8]} 91.
Kg3 {[%clk 0:00:21.4]} 91... Kg6 {[%clk 0:00:12.7]} 92. Kg4 {[%clk 0:00:22.7]}
92... Bd1+ {[%clk 0:00:13.2]} 93. Kg3 {[%clk 0:00:22.8]} 93... Bc2 {[%clk
0:00:14.2]} 94. Nf4+ {[%clk 0:00:23.7]} 94... Kh6 {[%clk 0:00:14.7]} 95. Nd5
{[%clk 0:00:23.4]} 95... Kg6 {[%clk 0:00:15.5]} 96. Ne3 {[%clk 0:00:24.7]} 96...
Bd3 {[%clk 0:00:15.4]} 97. Kg4 {[%clk 0:00:25.9]} 97... Be2+ {[%clk 0:00:15.7]}
98. Kg3 {[%clk 0:00:27.1]} 98... Bd3 {[%clk 0:00:16.7]} 99. Ng2 {[%clk
0:00:28.3]} 99... Bc2 {[%clk 0:00:15.4]} 100. Ne3 {[%clk 0:00:27.9]} 100... Bd3
{[%clk 0:00:16]} 101. Nd5 {[%clk 0:00:29.3]} 101... Be4 {[%clk 0:00:14.5]} 102.
Nf4+ {[%clk 0:00:31.2]} 102... Kh6 {[%clk 0:00:15.3]} 103. Kg4 {[%clk
0:00:32.2]} 103... Bc2 {[%clk 0:00:13]} 104. Nd5 {[%clk 0:00:32.3]} 104... Bd1+
{[%clk 0:00:12.8]} 105. Kf4 {[%clk 0:00:31.9]} 105... Kh5 {[%clk 0:00:12.3]}
106. Kg3 {[%clk 0:00:32.8]} 106... Kg6 {[%clk 0:00:13.2]} 107. Ne7+ {[%clk
0:00:31.4]} 107... Kh5 {[%clk 0:00:11.8]} 108. Nf5 {[%clk 0:00:29.8]} 108... Kg6
{[%clk 0:00:12.2]} 109. Ne3 {[%clk 0:00:30.5]} 109... Be2 {[%clk 0:00:12.8]}
110. Ng2 {[%clk 0:00:31.4]} 110... Bd1 {[%clk 0:00:12.3]} 111. Ne3 {[%clk
0:00:31.3]} 111... Be2 {[%clk 0:00:12.7]} 112. Nd5 {[%clk 0:00:32.5]} 112... Bd1
{[%clk 0:00:12.5]} 113. Nf4+ {[%clk 0:00:33.8]} 113... Kh6 {[%clk 0:00:13.3]}
114. Kf2 {[%clk 0:00:35.4]} 114... Bb3 {[%clk 0:00:08.9]} 115. Ne2 {[%clk
0:00:34.7]} 115... Bd1 {[%clk 0:00:09.1]} 116. Nd4 {[%clk 0:00:34.7]} 116... Kh5
{[%clk 0:00:09.2]} 117. Kg3 {[%clk 0:00:36.2]} 117... Kg6 {[%clk 0:00:09.9]}
118. Ne6 {[%clk 0:00:36.1]} 118... Bc2 {[%clk 0:00:09.1]} 119. Nf4+ {[%clk
0:00:36.3]} 119... Kh6 {[%clk 0:00:10.4]} 120. Nd5 {[%clk 0:00:34.3]} 120... Kg6
{[%clk 0:00:10.8]} 1/2-1/2

[Event "*** Titled Tuesday 3|2 Blitz"]
[Site "Chess.com"]
[Date "2015.04.07"]
[Round "5"]
[White "kesarev"]
[Black "David_Klein"]
[Result "1-0"]
[WhiteElo "2215"]
[BlackElo "2318"]
[TimeControl "180+2"]
[EndTime "11:58:05 PDT"]
[Termination "kesarev won by resignation"]

1. Nf3 {[%clk 0:03:01.9]} 1... Nf6 {[%clk 0:03:00.6]} 2. c4 {[%clk 0:03:02.4]}
2... c6 {[%clk 0:03:01.5]} 3. b3 {[%clk 0:03:02.1]} 3... d5 {[%clk 0:03:02.6]}
4. Bb2 {[%clk 0:03:03.1]} 4... Bf5 {[%clk 0:02:59.3]} 5. g3 {[%clk 0:03:02.8]}
5... e6 {[%clk 0:02:35.5]} 6. Bg2 {[%clk 0:03:03.3]} 6... h6 {[%clk 0:02:35.1]}
7. d3 {[%clk 0:03:02]} 7... Nbd7 {[%clk 0:02:35.4]} 8. O-O {[%clk 0:03:02.3]}
8... Be7 {[%clk 0:02:33.6]} 9. Nbd2 {[%clk 0:03:00.2]} 9... O-O {[%clk
0:02:34.3]} 10. Rc1 {[%clk 0:03:00.2]} 10... a5 {[%clk 0:02:34.7]} 11. a3 {[%clk
0:03:00.5]} 11... b5 {[%clk 0:02:34.3]} 12. cxb5 {[%clk 0:02:57.8]} 12... cxb5
{[%clk 0:02:30]} 13. Nd4 {[%clk 0:02:59.1]} 13... Qb6 {[%clk 0:02:29.9]} 14.
Nxf5 {[%clk 0:02:57.2]} 14... exf5 {[%clk 0:02:31.8]} 15. Rc2 {[%clk 0:02:51.4]}
15... Rac8 {[%clk 0:02:31.4]} 16. Qb1 {[%clk 0:02:46.4]} 16... Bd6 {[%clk
0:02:24.9]} 17. Nf3 {[%clk 0:02:39.5]} 17... Nc5 {[%clk 0:02:19.3]} 18. Bxf6
{[%clk 0:02:25]} 18... gxf6 {[%clk 0:02:21.2]} 19. Nd4 {[%clk 0:02:25.9]} 19...
Nxd3 {[%clk 0:02:19.6]} 20. Rxc8 {[%clk 0:02:21.3]} 20... Rxc8 {[%clk
0:02:15.1]} 21. Qxd3 {[%clk 0:02:20.4]} 21... Be5 {[%clk 0:02:16.2]} 22. Nxb5
{[%clk 0:02:17.5]} 22... Rb8 {[%clk 0:02:14.9]} 23. a4 {[%clk 0:02:17.9]} 1-0

[Event "*** Titled Tuesday 3|2 Blitz"]
[Site "Chess.com"]
[Date "2015.04.07"]
[Round "5"]
[White "Imre91"]
[Black "GeorgMeier"]
[Result "1/2-1/2"]
[WhiteElo "2567"]
[BlackElo "2722"]
[TimeControl "180+2"]
[EndTime "12:01:22 PDT"]
[Termination "Game drawn by repetition"]

1. d4 {[%clk 0:03:01.9]} 1... Nf6 {[%clk 0:03:00.1]} 2. Nf3 {[%clk 0:03:02.5]}
2... d5 {[%clk 0:03:00.4]} 3. g3 {[%clk 0:03:03.1]} 3... c6 {[%clk 0:03:00.1]}
4. Bg2 {[%clk 0:03:04.1]} 4... Bf5 {[%clk 0:03:01.7]} 5. O-O {[%clk 0:03:04.4]}
5... e6 {[%clk 0:03:02.9]} 6. c4 {[%clk 0:03:03.1]} 6... Be7 {[%clk 0:02:54.8]}
7. Nc3 {[%clk 0:02:58.6]} 7... h6 {[%clk 0:02:55.4]} 8. Qb3 {[%clk 0:02:57.6]}
8... Qb6 {[%clk 0:02:55.7]} 9. c5 {[%clk 0:02:58.4]} 9... Qc7 {[%clk 0:02:34.2]}
10. Bf4 {[%clk 0:02:57.9]} 10... Qc8 {[%clk 0:01:24.9]} 11. Qd1 {[%clk
0:02:57.6]} 11... O-O {[%clk 0:01:25.8]} 12. b4 {[%clk 0:02:58.6]} 12... Nbd7
{[%clk 0:01:25.6]} 13. Qb3 {[%clk 0:02:54.5]} 13... b6 {[%clk 0:01:26.2]} 14.
Rfc1 {[%clk 0:02:55.3]} 14... Ne4 {[%clk 0:01:22.6]} 15. cxb6 {[%clk 0:02:33.4]}
15... axb6 {[%clk 0:01:21.1]} 16. Nxe4 {[%clk 0:02:33.3]} 16... Bxe4 {[%clk
0:01:20.9]} 17. Ne5 {[%clk 0:02:34]} 17... Nxe5 {[%clk 0:01:19.4]} 18. Bxe4
{[%clk 0:02:30.4]} 18... Nc4 {[%clk 0:01:16.7]} 19. Bd3 {[%clk 0:02:26]} 19...
Ra3 {[%clk 0:01:04.9]} 20. Qd1 {[%clk 0:02:15.5]} 20... b5 {[%clk 0:01:06]} 21.
Rcb1 {[%clk 0:02:16.5]} 21... Qa6 {[%clk 0:01:06.2]} 22. e4 {[%clk 0:02:03]}
22... Bf6 {[%clk 0:01:02.1]} 23. e5 {[%clk 0:02:03.4]} 23... Be7 {[%clk
0:00:58.8]} 24. Bc2 {[%clk 0:01:47.9]} 24... Rxa2 {[%clk 0:00:57.5]} 25. Rxa2
{[%clk 0:01:19.5]} 25... Qxa2 {[%clk 0:00:59.4]} 26. Ra1 {[%clk 0:01:21]} 26...
Qb2 {[%clk 0:01:00]} 27. Rb1 {[%clk 0:01:22]} 27... Qa3 {[%clk 0:00:57.8]} 28.
Bc1 {[%clk 0:01:22.6]} 28... Qc3 {[%clk 0:00:46.6]} 29. Rb3 {[%clk 0:01:19.1]}
29... Qa1 {[%clk 0:00:47.4]} 30. Rb1 {[%clk 0:01:19.3]} 30... Qc3 {[%clk
0:00:48.1]} 31. Rb3 {[%clk 0:01:19.7]} 31... Qa1 {[%clk 0:00:49.2]} 32. Rb1
{[%clk 0:01:20.7]} 32... Qc3 {[%clk 0:00:50.3]} 1/2-1/2